fUST/lending_fUST_20250417
["ID","MTS","AMOUNT","RATE_DAILY","PERIOD"]
[358201140,1744831843891,-1650.6052404,0.00018234,2]
[358201141,1744831843900,-500.0,0.00018234,2]
[358201142,1744831843909,-500.0,0.00018234,2]
[358201143,1744831843918,-1650.6052404,0.00018234,2]
[358201144,1744831843928,-500.0,0.00018234,2]
[358201145,1744831843937,-1650.6052404,0.00018234,2]
[358201146,1744831843946,-1650.6052404,0.00018234,2]
[358201147,1744831843955,-1650.6052404,0.00018234,2]
[358201148,1744831843964,-500.0,0.00018234,2]
[358201149,1744831843973,-1650.6052404,0.00018234,2]
[358201150,1744831843982,-500.0,0.00018234,2]
[358201151,1744831843992,-500.0,0.00018234,2]
[358201152,1744831844004,-1650.6052404,0.00018234,2]
[358201153,1744831844013,-1650.6052404,0.00018234,2]
[358201154,1744831844023,-1650.6052404,0.00018234,2]
[358201155,1744831844032,-500.0,0.00018234,2]
[358201156,1744831844043,-1650.6052404,0.00018234,2]
[358201157,1744831844052,-1650.6052404,0.00018234,2]
[358201158,1744831844061,-500.0,0.00018234,2]
[358201159,1744831844072,-1650.6052404,0.00018234,2]
[358201161,1744831844081,-1650.6052404,0.00018234,2]
[358201162,1744831844090,-1650.6052404,0.00018234,2]
[358201164,1744831844100,-500.0,0.00018234,2]
[358201166,1744831844109,-1650.6052404,0.00018234,2]
[358201168,1744831844119,-1650.6052404,0.00018234,2]
[358201169,1744831844128,-500.0,0.00018234,2]
[358201171,1744831844138,-1650.6052404,0.00018234,2]
[358201173,1744831844147,-1650.6052404,0.00018234,2]
[358201174,1744831844156,-1650.6052404,0.00018234,2]
[358201175,1744831844166,-1650.6052404,0.00018234,2]
[358201176,1744831844175,-1650.6052404,0.00018234,2]
[358201177,1744831844184,-1650.6052404,0.00018234,2]
[358201178,1744831844193,-1650.6052404,0.00018234,2]
[358201179,1744831844203,-1650.6052404,0.00018234,2]
[358201180,1744831844212,-1650.6052404,0.00018234,2]
[358201181,1744831844221,-1650.6052404,0.00018234,2]
[358201182,1744831844231,-1650.6052404,0.00018234,2]
[358201183,1744831844241,-1650.6052404,0.00018234,2]
[358201184,1744831844250,-1650.6052404,0.00018234,2]
[358201185,1744831844261,-1650.6052404,0.00018234,2]
[358201186,1744831844271,-1650.6052404,0.00018234,2]
[358201187,1744831844281,-1650.6052404,0.00018234,2]
[358201188,1744831844291,-1650.6052404,0.00018234,2]
[358201189,1744831844300,-1650.6052404,0.00018234,2]
[358201190,1744831844310,-1650.6052404,0.00018234,2]
[358201191,1744831844320,-1650.6052404,0.00018234,2]
[358201192,1744831844330,-1650.6052404,0.00018234,2]
[358201193,1744831844339,-1650.6052404,0.00018234,2]
[358201194,1744831844349,-1650.6052404,0.00018234,2]
[358201195,1744831844359,-1650.6052404,0.00018234,2]
[358201196,1744831844368,-1650.6052404,0.00018234,2]
[358201197,1744831844378,-1650.6052404,0.00018234,2]
[358201198,1744831844388,-1650.6052404,0.00018234,2]
[358201199,1744831844398,-1650.6052404,0.00018234,2]
[358201200,1744831844407,-1650.6052404,0.00018234,2]
[358201201,1744831844416,-1650.6052404,0.00018234,2]
[358201202,1744831844426,-1650.6052404,0.00018234,2]
[358201203,1744831844435,-1650.6052404,0.00018234,2]
[358201204,1744831844444,-1650.6052404,0.00018234,2]
[358201205,1744831844455,-1650.6052404,0.00018234,2]
[358201206,1744831844465,-707.0,0.00024058,2]
[358201207,1744831844474,-1591.27959535,0.000242,5]
[358201208,1744831844483,-430.37835956,0.00024657,2]
[358201209,1744831844493,-500.0,0.00024657,2]
[358201210,1744831844502,-594.72,0.00024657,2]
[358201211,1744831844512,-500.0,0.00024657,2]
[358201212,1744831844522,-500.0,0.00024657,2]
[358201213,1744831844531,-1376.98,0.00024657,2]
[358201214,1744831844540,-500.0,0.00024657,2]
[358201215,1744831844550,-500.0,0.00024657,2]
[358201216,1744831844559,-500.0,0.00024657,2]
[358201217,1744831844569,-500.0,0.00024657,2]
[358201218,1744831844578,-575.38,0.00024657,2]
[358201219,1744831844588,-723.43,0.00024657,2]
[358201220,1744831844597,-500.0,0.00024657,2]
[358201221,1744831844607,-512.19333076,0.00024657,2]
[358201222,1744831844616,-537.15085685,0.00024657,2]
[358201223,1744831844626,-629.1,0.00024657,2]
[358201224,1744831844635,-500.0,0.00024657,2]
[358201225,1744831844644,-500.0,0.00024657,2]
[358201226,1744831844653,-280.91981774,0.00024657,2]
[358201227,1744831844662,-500.0,0.00024657,2]
[358201228,1744831844672,-996.48,0.00024657,2]
[358201229,1744831844681,-500.0,0.00024657,2]
[358201230,1744831844691,-506.27652079,0.00024657,2]
[358201231,1744831844700,-500.0,0.00024657,2]
[358201232,1744831844709,-500.0,0.00024657,2]
[358201233,1744831844719,-691.2,0.00024657,2]
[358201234,1744831844728,-500.0,0.00024657,2]
[358201235,1744831844737,-500.0,0.00024657,2]
[358201236,1744831844747,-1000.0,0.00024657,2]
[358201237,1744831844756,-541.45458711,0.00024657,2]
[358201238,1744831844766,-500.0,0.00024657,2]
[358201239,1744831844775,-2657.21,0.00024657,2]
[358201240,1744831844784,-500.0,0.00024657,2]
[358201241,1744831844793,-500.0,0.00024657,2]
[358201242,1744831844803,-500.0,0.00024657,2]
[358201243,1744831844812,-500.0,0.00024657,2]
[358201244,1744831844821,-500.0,0.00024657,2]
[358201245,1744831844830,-1199.5,0.00024657,2]
[358201246,1744831844840,-1007.59,0.00024657,2]
[358201247,1744831844849,-500.0,0.00024657,2]
[358201248,1744831844858,-500.0,0.00024657,2]
[358201249,1744831844868,-500.0,0.00024657,2]
[358201250,1744831844877,-500.0,0.00024657,2]
[358201251,1744831844887,-1625.71,0.00024657,2]
[358201252,1744831844896,-500.0,0.00024657,2]
[358201253,1744831844905,-500.0,0.00024657,2]
[358201254,1744831844915,-500.0,0.00024657,2]
[358201255,1744831844924,-500.0,0.00024657,2]
[358201256,1744831844933,-500.0,0.00024657,2]
[358201257,1744831844943,-500.0,0.00024657,2]
[358201258,1744831844953,-500.0,0.00024657,2]
[358201259,1744831844962,-500.0,0.00024657,2]
[358201260,1744831844971,-500.0,0.00024657,2]
[358201261,1744831844983,-500.0,0.00024657,2]
[358201262,1744831844994,-500.0,0.00024657,2]
[358201263,1744831845003,-500.0,0.00024657,2]
[358201264,1744831845013,-500.0,0.00024657,2]
[358201265,1744831845023,-740.54,0.00024657,2]
[358201266,1744831845033,-530.85,0.00024657,2]
[358201267,1744831845043,-500.0,0.00024657,2]
[358201268,1744831845052,-1086.79,0.00024657,2]
[358201269,1744831845062,-757.84,0.00024657,2]
[358201270,1744831845072,-500.0,0.00024657,2]
[358201271,1744831845082,-500.0,0.00024657,2]
[358201272,1744831845091,-500.0,0.00024657,2]
[358201273,1744831845100,-500.0,0.00024657,2]
[358201274,1744831845110,-891.10546457,0.00024657,2]
[358201331,1744833031871,-222.16149745,0.00018129,2]
[358201332,1744833031882,-250.0,0.00018134,2]
[358201333,1744833031892,-300.0,0.00018226,2]
[358201334,1744833031903,-300.0,0.00018227,2]
[358201335,1744833031913,-500.0,0.00018227,2]
[358201336,1744833031922,-500.0,0.00018227,2]
[358201337,1744833031932,-156.89790395,0.00018227,2]
[358201338,1744833031941,-500.0,0.00018227,2]
[358201339,1744833031951,-500.0,0.00018227,2]
[358201340,1744833031961,-500.0,0.00018227,2]
[358201341,1744833031970,-500.0,0.00018227,2]
[358201342,1744833031980,-500.0,0.00018227,2]
[358201343,1744833031989,-500.0,0.00018227,2]
[358201345,1744833031999,-500.0,0.00018227,2]
[358201347,1744833032010,-500.0,0.00018227,2]
[358201349,1744833032019,-500.0,0.00018227,2]
[358201351,1744833032029,-500.0,0.00018227,2]
[358201353,1744833032040,-500.0,0.00018227,2]
[358201355,1744833032050,-500.0,0.00018227,2]
[358201357,1744833032060,-650.0,0.00018227,2]
[358201360,1744833032070,-382.95311675,0.00018227,2]
[358201363,1744833032083,-117.04688325,0.00018227,2]
[358201366,1744833032093,-500.0,0.00018227,2]
[358201369,1744833032103,-500.0,0.00018227,2]
[358201372,1744833032115,-253.9847944,0.00018227,2]
[358201376,1744833032126,-500.0,0.00018227,2]
[358201379,1744833032136,-387.9657016,0.00018227,2]
[358201916,1744833038058,-500.0,0.00018226,2]
[358201918,1744833038069,-477.48574099,0.00018226,2]
[358201920,1744833038079,-176.4835505,0.000183,2]
[358201922,1744833038089,-500.0,0.000183,2]
[358201924,1744833038098,-500.0,0.000183,2]
[358201926,1744833038108,-500.0,0.000183,2]
[358201928,1744833038119,-500.0,0.000183,2]
[358201930,1744833038129,-500.0,0.000183,2]
[358201932,1744833038139,-500.0,0.000183,2]
[358201934,1744833038149,-535.27139459,0.000183,2]
[358201936,1744833038158,-588.924871,0.00018868,2]
[358201938,1744833038169,-222.16149741,0.00019791,2]
[358201940,1744833038179,-420.0,0.00019882,2]
[358201942,1744833038188,-420.0,0.00019981,2]
[358201944,1744833038198,-222.16149741,0.00021453,2]
[358201946,1744833038208,-587.0,0.00021903,2]
[358201949,1744833038217,-1907.45616846,0.00022,2]
[358201951,1744833038234,-1021.532452,0.00022,2]
[358201954,1744833038246,-2006.40428347,0.00022,2]
[358201957,1744833038270,-4189.31750512,0.00022,2]
[358201959,1744833038280,-222.16149741,0.00023115,2]
[358201961,1744833038289,-500.0,0.00023779,2]
[358201965,1744833038300,-1000.0,0.00023779,2]
[358201968,1744833038311,-1000.0,0.00023779,2]
[358201970,1744833038320,-823.0,0.0002401,2]
[358201972,1744833038329,-707.0,0.00024034,2]
[358201974,1744833038339,-544.0,0.00024034,2]
[358201976,1744833038349,-1315.02099752,0.00024034,2]
[358201978,1744833038368,-663.23739488,0.00024034,2]
[358201983,1744833038414,-269.7416076,0.00024034,2]
[358201986,1744833038425,-250.311,0.00024034,2]
[358201988,1744833038435,-250.0,0.00024034,2]
[358201990,1744833038447,-179.0951003,0.00024034,2]
[358201992,1744833038460,-222.9048997,0.00024034,2]
[358201994,1744833038470,-1009.13986329,0.000242,5]
[358201996,1744833038481,-511.09596172,0.000242,5]
[358201999,1744833038493,-230.19055785,0.000242,5]
[358202001,1744833038502,-364.79349109,0.000242,5]
[358202003,1744833038513,-1385.6328917,0.000242,5]
[358202005,1744833038523,-614.3671083,0.000242,5]
[358202007,1744833038535,-1136.05927449,0.000242,5]
[358202008,1744833038545,-1750.42638279,0.000242,5]
[358202009,1744833038554,-1750.42638279,0.000242,5]
[358202010,1744833038564,-1230.57510682,0.000242,5]
[358202011,1744833038575,-519.85127597,0.000242,5]
[358202012,1744833038585,-1113.43435901,0.000242,5]
[358202013,1744833038597,-636.99202378,0.000242,5]
[358202014,1744833038607,-1750.42638279,0.000242,5]
[358202015,1744833038618,-337.04780311,0.000242,5]
[358202226,1744833040330,-1413.37857968,0.000242,5]
[358202228,1744833040340,-1750.42638279,0.00024555,5]
[358202230,1744833040350,-160.0,0.00024557,3]
[358202233,1744833040367,-12553.36997132,0.00024557,3]
[358202235,1744833040376,-160.0,0.00024557,3]
[358202237,1744833040386,-838.91012072,0.00024557,3]
[358202239,1744833040395,-419.79415307,0.00024557,3]
[358202241,1744833040407,-160.0,0.00024557,3]
[358202243,1744833040417,-11905.03115235,0.00024557,2]
[358202245,1744833040427,-12026.90425561,0.00024557,3]
[358202247,1744833040438,-79169.12544322,0.00024557,2]
[358202250,1744833040455,-810.27166094,0.00024557,2]
[358202252,1744833040470,-1226.04132791,0.00024557,2]
[358202501,1744833043051,-468.942,0.00024557,2]
[358202506,1744833043108,-544.28731357,0.00024557,2]
[358202511,1744833043163,-2090.44795886,0.00024557,2]
[358202513,1744833043178,-1644.67106572,0.00024557,2]
[358202515,1744833043191,-12834.9889814,0.00024557,2]
[358202517,1744833043203,-2743.90981451,0.00024557,2]
[358202624,1744833046207,-33505.71486406,0.00024557,2]
[358202625,1744833046221,-1566.82365562,0.00024557,2]
[358202626,1744833231608,6823.305045,0.00017618,2]
[358202627,1744833303212,1996.3172822,0.00017759,2]
[358202628,1744833848432,7394.3559933,0.00017618,2]
[358202708,1744834232093,-500.0,0.00018026,2]
[358202710,1744834232105,-199.49450272,0.00018026,2]
[358202712,1744834232115,-1000.0,0.00018026,2]
[358202714,1744834232124,-199.9956401,0.00018026,2]
[358202715,1744834232134,-463.797696,0.00018068,2]
[358202716,1744834232144,-412.90273887,0.00018117,2]
[358202718,1744834232154,-218.79847651,0.00018118,2]
[358202719,1744834232164,-300.0,0.00018216,2]
[358202720,1744834232174,-300.0,0.00018216,2]
[358202721,1744834232184,-320.17208097,0.00018217,2]
[358202722,1744834232195,-500.0,0.00018217,2]
[358202723,1744834232205,-500.0,0.00018217,2]
[358202724,1744834232215,-2136.85700319,0.00018217,2]
[358202725,1744834232225,-500.0,0.00018217,2]
[358202727,1744834232234,-2136.85700319,0.00018217,2]
[358202729,1744834232244,-500.0,0.00018217,2]
[358202731,1744834232253,-500.0,0.00018217,2]
[358202733,1744834232263,-2136.85700319,0.00018217,2]
[358202735,1744834232273,-500.0,0.00018217,2]
[358202737,1744834232284,-2136.85700319,0.00018217,2]
[358202739,1744834232294,-500.0,0.00018217,2]
[358202741,1744834232304,-2136.85700319,0.00018217,2]
[358202743,1744834232314,-500.0,0.00018217,2]
[358202745,1744834232323,-300.0,0.00018217,2]
[358202747,1744834232333,-2136.85700319,0.00018217,2]
[358202748,1744834232343,-500.0,0.00018217,2]
[358202749,1744834232354,-2136.85700319,0.00018217,2]
[358202750,1744834232364,-2136.85700319,0.00018217,2]
[358202752,1744834232374,-500.0,0.00018217,2]
[358202754,1744834232384,-2136.85700319,0.00018217,2]
[358202756,1744834232394,-500.0,0.00018217,2]
[358202757,1744834232404,-2136.85700319,0.00018217,2]
[358202758,1744834232415,-196.88061053,0.00018217,2]
[358202759,1744834232425,-2136.85700319,0.00018217,2]
[358202760,1744834232435,-500.0,0.00018217,2]
[358202761,1744834232446,-2136.85700319,0.00018217,2]
[358202762,1744834232458,-2136.85700319,0.00018217,2]
[358202763,1744834232469,-500.0,0.00018217,2]
[358202764,1744834232479,-2136.85700319,0.00018217,2]
[358202765,1744834232492,-2136.85700319,0.00018217,2]
[358202766,1744834232503,-299.35186201,0.00018217,2]
[358202767,1744834232516,-2136.85700319,0.00018217,2]
[358202768,1744834232528,-500.0,0.00018217,2]
[358202769,1744834232539,-2136.85700319,0.00018217,2]
[358202770,1744834232551,-2136.85700319,0.00018217,2]
[358202771,1744834232561,-500.0,0.00018217,2]
[358202772,1744834232572,-2136.85700319,0.00018217,2]
[358202773,1744834232584,-500.0,0.00018217,2]
[358202774,1744834232594,-500.0,0.00018217,2]
[358202775,1744834232608,-2136.85700319,0.00018217,2]
[358202776,1744834232620,-767.06242734,0.00018217,2]
[358202777,1744834232649,-487.31355088,0.00018217,2]
[358202778,1744834232662,-882.48102497,0.00018217,2]
[358202779,1744834232673,-2136.85700319,0.00018217,2]
[358202780,1744834232683,-2136.85700319,0.00018217,2]
[358202781,1744834232694,-2136.85700319,0.00018217,2]
[358202782,1744834232704,-2136.85700319,0.00018217,2]
[358202783,1744834232714,-2136.85700319,0.00018217,2]
[358202784,1744834232725,-2136.85700319,0.00018217,2]
[358202785,1744834232739,-2136.85700319,0.00018217,2]
[358202786,1744834232749,-2136.85700319,0.00018217,2]
[358202787,1744834232760,-2136.85700319,0.00018217,2]
[358202788,1744834232771,-2136.85700319,0.00018217,2]
[358202789,1744834232790,-2136.85700319,0.00018217,2]
[358202790,1744834232803,-338.73187415,0.00018217,2]
[358202817,1744834238159,-500.0,0.00018216,2]
[358202819,1744834238170,-500.0,0.00018216,2]
[358202821,1744834238180,-259.74805838,0.00018216,2]
[358202823,1744834238190,-287.82777496,0.000183,2]
[358202825,1744834238202,-212.846974,0.000183,2]
[358202827,1744834238211,-500.0,0.000183,2]
[358202829,1744834238221,-500.0,0.000183,2]
[358202831,1744834238231,-280.48755935,0.000183,2]
[358202832,1744834238241,-500.0,0.000183,2]
[358202860,1744834238500,-122.56722021,0.000183,2]
[358202864,1744834238534,-377.43277979,0.000183,2]
[358202866,1744834238545,-500.0,0.000183,2]
[358202868,1744834238554,-160.32517706,0.000183,2]
[358202870,1744834238564,-500.0,0.000183,2]
[358202872,1744834238574,-162.84560165,0.000183,2]
[358202874,1744834238587,-337.15439835,0.000183,2]
[358202876,1744834238597,-394.45066866,0.000183,2]
[358202878,1744834238609,-500.0,0.000183,2]
[358202880,1744834238618,-503.50103423,0.000183,2]
[358202882,1744834238628,-500.0,0.000183,2]
[358202884,1744834238637,-602.79187796,0.000183,2]
[358202886,1744834238647,-500.0,0.000183,2]
[358202887,1744834238657,-323.5226208,0.000183,2]
[358202890,1744834238679,-176.4773792,0.000183,2]
[358202892,1744834238688,-500.0,0.000183,2]
[358202894,1744834238698,-500.0,0.000183,2]
[358202896,1744834238707,-505.30703472,0.000183,2]
[358202897,1744834238717,-500.0,0.000183,2]
[358202898,1744834238729,-339.73846963,0.000183,2]
[358202899,1744834238740,-500.0,0.000183,2]
[358202900,1744834238749,-504.69515223,0.000183,2]
[358202901,1744834238760,-500.0,0.000183,2]
[358202902,1744834238771,-500.0,0.000183,2]
[358202903,1744834238781,-500.0,0.000183,2]
[358202904,1744834238791,-500.66529769,0.000183,2]
[358202905,1744834238801,-300.46712725,0.000183,2]
[358202906,1744834238811,-500.0,0.000183,2]
[358202907,1744834238821,-412.90273882,0.00019742,2]
[358202908,1744834238830,-420.0,0.00019969,2]
[358202909,1744834238840,-412.90273882,0.00021366,2]
[358202910,1744834238851,-226.0,0.0002189,2]
[358202911,1744834238860,-529.002145,0.00023287,2]
[358202912,1744834238871,-1000.0,0.00023779,2]
[358202913,1744834238880,-1000.0,0.00023779,2]
[358202914,1744834238891,-1000.0,0.00023779,2]
[358202915,1744834238901,-1000.0,0.00023779,2]
[358202916,1744834238911,-707.0,0.00024034,2]
[358202917,1744834238920,-544.0,0.00024034,2]
[358202918,1744834238930,-2248.0,0.00024034,2]
[358202919,1744834238939,-1231.95646211,0.000241,5]
[358202920,1744834238954,-1231.95646197,0.000241,5]
[358202921,1744834238963,-1231.95646197,0.000241,5]
[358202922,1744834238973,-1231.95646197,0.000241,5]
[358202923,1744834238982,-1231.95646197,0.000241,5]
[358202924,1744834238992,-1231.95646197,0.000241,5]
[358202925,1744834239002,-1231.95646197,0.000241,5]
[358202926,1744834239012,-1231.95646197,0.000241,5]
[358202927,1744834239022,-1231.95646197,0.000241,5]
[358202928,1744834239032,-153.0,0.00024384,2]
[358202929,1744834239041,-218.79847651,0.00024455,2]
[358202931,1744834239050,-31993.48448556,0.00024498,2]
[358202932,1744834239060,-11986.57499745,0.00024498,3]
[358202933,1744834239069,-835.6568498,0.00024499,3]
[358202934,1744834239080,-160.0,0.00024499,3]
[358202935,1744834239090,-12553.36997132,0.00024499,3]
[358202936,1744834239100,-160.0,0.00024499,3]
[358202937,1744834239110,-130979.62403111,0.000245,2]
[358202938,1744834239123,-239020.37596889,0.000245,2]
[358202939,1744834239133,-987.60758612,0.00024555,5]
[358202940,1744834239145,-244.34887585,0.00024555,5]
[358202941,1744834239155,-420.18615873,0.00024557,3]
[358202942,1744834239164,-91836.66470804,0.000246,3]
[358202943,1744834239174,-160.0,0.000246,3]
[358202944,1744834239185,-316.0,0.000246,2]
[358202945,1744834239195,-151.0,0.00024642,2]
[358202946,1744834239205,-744.36,0.00024657,2]
[358202947,1744834239215,-6674.28,0.00024657,2]
[358202948,1744834239224,-500.0,0.00024657,2]
[358202949,1744834239234,-500.0,0.00024657,2]
[358202950,1744834239244,-500.0,0.00024657,2]
[358202951,1744834239253,-500.0,0.00024657,2]
[358202952,1744834239263,-500.0,0.00024657,2]
[358202953,1744834239274,-500.0,0.00024657,2]
[358202954,1744834239284,-324.11905318,0.00024657,2]
[358202955,1744834239294,-1376.47,0.00024657,2]
[358202956,1744834239305,-667.46,0.00024657,2]
[358202957,1744834239315,-183.79725017,0.00024657,2]
[358202958,1744834239325,-500.0,0.00024657,2]
[358202959,1744834239334,-974.27,0.00024657,2]
[358202960,1744834239344,-763.58,0.00024657,2]
[358202961,1744834239355,-497.78565677,0.00024657,2]
[358202962,1744834239365,-500.0,0.00024657,2]
[358202963,1744834239374,-500.0,0.00024657,2]
[358202964,1744834239384,-500.0,0.00024657,2]
[358202965,1744834239394,-500.0,0.00024657,2]
[358202966,1744834239404,-1176.12,0.00024657,2]
[358202967,1744834239414,-500.0,0.00024657,2]
[358202968,1744834239424,-500.0,0.00024657,2]
[358202969,1744834239434,-500.0,0.00024657,2]
[358202970,1744834239444,-1146.75,0.00024657,2]
[358202971,1744834239454,-911.18,0.00024657,2]
[358202972,1744834239464,-500.0,0.00024657,2]
[358202973,1744834239474,-500.0,0.00024657,2]
[358202974,1744834239484,-709.45,0.00024657,2]
[358202975,1744834239494,-590.98,0.00024657,2]
[358202976,1744834239504,-500.0,0.00024657,2]
[358202977,1744834239514,-660.44,0.00024657,2]
[358202978,1744834239524,-500.0,0.00024657,2]
[358202979,1744834239534,-502.68,0.00024657,2]
[358202980,1744834239544,-500.0,0.00024657,2]
[358202981,1744834239553,-1279.16,0.00024657,2]
[358202982,1744834239563,-915.87,0.00024657,2]
[358202983,1744834239574,-500.0,0.00024657,2]
[358202984,1744834239584,-482.17282773,0.00024657,2]
[358202985,1744834239594,-1405.34,0.00024657,2]
[358202986,1744834239606,-167.32546974,0.00024657,2]
[358202987,1744834239616,-1455.02,0.00024657,2]
[358202988,1744834239626,-500.0,0.00024657,2]
[358202989,1744834239636,-500.0,0.00024657,2]
[358202990,1744834239646,-908.68,0.00024657,2]
[358202991,1744834239656,-500.0,0.00024657,2]
[358202992,1744834239666,-500.0,0.00024657,2]
[358202993,1744834239676,-500.0,0.00024657,2]
[358202994,1744834239686,-500.0,0.00024657,2]
[358202995,1744834239696,-500.0,0.00024657,2]
[358202996,1744834239706,-500.0,0.00024657,2]
[358202997,1744834239714,-525.31,0.00024657,2]
[358202998,1744834239725,-500.0,0.00024657,2]
[358202999,1744834239735,-500.0,0.00024657,2]
[358203000,1744834239748,-500.0,0.00024657,2]
[358203001,1744834239759,-500.0,0.00024657,2]
[358203002,1744834239769,-1114.7,0.00024657,2]
[358203003,1744834239779,-1068.25,0.00024657,2]
[358203004,1744834239790,-500.0,0.00024657,2]
[358203005,1744834239800,-500.0,0.00024657,2]
[358203006,1744834239810,-500.0,0.00024657,2]
[358203007,1744834239822,-500.0,0.00024657,2]
[358203008,1744834239832,-500.0,0.00024657,2]
[358203009,1744834239842,-500.0,0.00024657,2]
[358203010,1744834239852,-500.0,0.00024657,2]
[358203011,1744834239862,-500.0,0.00024657,2]
[358203012,1744834239872,-689.65,0.00024657,2]
[358203013,1744834239882,-5455.25,0.00024657,2]
[358203014,1744834239891,-500.0,0.00024657,2]
[358203015,1744834239901,-500.0,0.00024657,2]
[358203016,1744834239911,-500.0,0.00024657,2]
[358203017,1744834239921,-788.39,0.00024657,2]
[358203018,1744834239931,-500.0,0.00024657,2]
[358203019,1744834239940,-1627.77,0.00024657,2]
[358203020,1744834239951,-500.0,0.00024657,2]
[358203021,1744834239960,-500.0,0.00024657,2]
[358203022,1744834239970,-500.0,0.00024657,2]
[358203023,1744834239980,-500.0,0.00024657,2]
[358203024,1744834239989,-620.32,0.00024657,2]
[358203026,1744834239999,-500.0,0.00024657,2]
[358203028,1744834240008,-558.05,0.00024657,2]
[358203029,1744834240018,-582.99,0.00024657,2]
[358203030,1744834240027,-1622.8,0.00024657,2]
[358203031,1744834240037,-500.0,0.00024657,2]
[358203032,1744834240047,-500.0,0.00024657,2]
[358203033,1744834240056,-620.21,0.00024657,2]
[358203034,1744834240065,-972.41,0.00024657,2]
[358203035,1744834240075,-696.59,0.00024657,2]
[358203036,1744834240086,-3263.09,0.00024657,2]
[358203037,1744834240096,-548.88,0.00024657,2]
[358203038,1744834240105,-500.0,0.00024657,2]
[358203039,1744834240115,-5106.69,0.00024657,2]
[358203040,1744834240124,-500.0,0.00024657,2]
[358203041,1744834240134,-500.0,0.00024657,2]
[358203042,1744834240144,-500.0,0.00024657,2]
[358203043,1744834240153,-500.0,0.00024657,2]
[358203044,1744834240163,-500.0,0.00024657,2]
[358203045,1744834240172,-500.0,0.00024657,2]
[358203046,1744834240182,-500.0,0.00024657,2]
[358203047,1744834240191,-529.48,0.00024657,2]
[358203048,1744834240201,-2107.15,0.00024657,2]
[358203049,1744834240211,-500.0,0.00024657,2]
[358203050,1744834240222,-500.0,0.00024657,2]
[358203051,1744834240232,-500.0,0.00024657,2]
[358203052,1744834240242,-662.4,0.00024657,2]
[358203053,1744834240253,-1101.63,0.00024657,2]
[358203054,1744834240262,-500.0,0.00024657,2]
[358203055,1744834240272,-500.0,0.00024657,2]
[358203056,1744834240282,-500.0,0.00024657,2]
[358203057,1744834240292,-500.0,0.00024657,2]
[358203058,1744834240301,-578.92856435,0.00024657,2]
[358203059,1744834240312,-1557.97,0.00024657,2]
[358203060,1744834240322,-500.0,0.00024657,2]
[358203061,1744834240332,-500.0,0.00024657,2]
[358203062,1744834240342,-500.0,0.00024657,2]
[358203063,1744834240352,-500.0,0.00024657,2]
[358203064,1744834240362,-614.91,0.00024657,2]
[358203065,1744834240372,-500.0,0.00024657,2]
[358203066,1744834240382,-500.0,0.00024657,2]
[358203067,1744834240391,-500.0,0.00024657,2]
[358203068,1744834240401,-500.0,0.00024657,2]
[358203069,1744834240410,-500.0,0.00024657,2]
[358203070,1744834240420,-500.0,0.00024657,2]
[358203071,1744834240429,-275.74253342,0.00024657,2]
[358203072,1744834240439,-500.0,0.00024657,2]
[358203074,1744834240449,-500.0,0.00024657,2]
[358203076,1744834240459,-225.37495326,0.00024657,2]
[358203077,1744834240469,-1870.62,0.00024657,2]
[358203079,1744834240479,-1870.62,0.00024657,2]
[358203081,1744834240488,-500.0,0.00024657,2]
[358203082,1744834240498,-500.0,0.00024657,2]